fUSD/lending_fUSD_20240521
["ID","MTS","AMOUNT","RATE_DAILY","PERIOD"]
[327686565,1716316255605,-540.73,0.00030958,6]
[327686566,1716316255615,-621.75,0.00030958,6]
[327686567,1716316255626,-500.0,0.00030958,6]
[327686568,1716316255635,-577.74,0.00030958,6]
[327686569,1716316255645,-500.0,0.00030958,6]
[327686570,1716316255655,-500.0,0.00030958,6]
[327686571,1716316255664,-500.0,0.00030958,6]
[327686572,1716316255674,-844.58,0.00030958,6]
[327686573,1716316255683,-500.0,0.00030958,6]
[327686574,1716316255693,-500.0,0.00030958,6]
[327686575,1716316255703,-616.73,0.00030958,6]
[327686576,1716316255712,-972.64,0.00030958,6]
[327686577,1716316255722,-500.0,0.00030958,6]
[327686578,1716316255731,-509.21,0.00030958,6]
[327686579,1716316255741,-500.0,0.00030958,6]
[327686580,1716316255751,-897.67,0.00030958,6]
[327686581,1716316255760,-500.0,0.00030958,6]
[327686582,1716316255772,-500.0,0.00030958,6]
[327686583,1716316255781,-1075.6,0.00030958,6]
[327686584,1716316255796,-1017.28,0.00030958,6]
[327686585,1716316255805,-500.0,0.00030958,6]
[327686586,1716316255815,-776.77,0.00030958,6]
[327686587,1716316255825,-500.0,0.00030958,6]
[327686588,1716316255837,-500.0,0.00030958,6]
[327686589,1716316255848,-1232.83,0.00030958,6]
[327686590,1716316255858,-150.0,0.00030958,6]
[327686591,1716316255868,-855.63,0.00030958,6]
[327686592,1716316255885,-500.0,0.00030958,6]
[327686593,1716316255896,-1394.84,0.00030958,6]
[327686594,1716316255906,-500.0,0.00030958,6]
[327686595,1716316255916,-681.97,0.00030958,6]
[327686596,1716316255926,-627.96,0.00030958,6]
[327686597,1716316255936,-653.59,0.00030958,6]
[327686598,1716316255945,-639.66,0.00030958,6]
[327686599,1716316255955,-577.48,0.00030958,6]
[327686600,1716316255965,-609.76,0.00030958,6]
[327686601,1716316255975,-793.39,0.00030958,6]
[327686602,1716316255984,-744.05,0.00030958,6]
[327686603,1716316255993,-500.0,0.00030958,6]
[327686604,1716316256003,-738.85,0.00030958,6]
[327686605,1716316256012,-1125.7,0.00030958,6]
[327686606,1716316256022,-868.11,0.00030958,6]
[327686607,1716316256032,-1004.45,0.00030958,6]
[327686608,1716316256042,-836.71,0.00030958,6]
[327686609,1716316256052,-151.0,0.00030958,7]
[327686610,1716316256062,-244.684778,0.00030958,7]
[327686611,1716316256072,-266.19,0.00030958,6]
[327686612,1716316256081,-2626.16,0.00030958,6]
[327686613,1716316256092,-500.0,0.00030958,6]
[327686614,1716316256102,-1130.72,0.00030958,6]
[327686615,1716316256113,-320.7988793,0.00030958,6]
[327686616,1716316256122,-926.85,0.00030958,6]
[327686617,1716316256132,-500.0,0.00030958,6]
[327686618,1716316256141,-532.5,0.00030958,6]
[327686619,1716316256151,-16858.5,0.00030958,6]
[327686620,1716316256161,-724.05,0.00030958,6]
[327686621,1716316256172,-1165.07,0.00030958,6]
[327686622,1716316256181,-500.0,0.00030958,6]
[327686623,1716316256192,-6309.69,0.00030958,6]
[327686624,1716316256202,-727.07,0.00030958,6]
[327686625,1716316256212,-500.0,0.00030958,6]
[327686626,1716316256223,-500.0,0.00030958,6]
[327686627,1716316256233,-151.0,0.00030958,7]
[327686628,1716316256243,-151.0,0.00030958,7]
[327686629,1716316256253,-818.66,0.00030958,6]
[327686630,1716316256264,-2034.36,0.00030958,6]
[327686631,1716316256273,-500.0,0.00030958,6]
[327686632,1716316256282,-661.44,0.00030958,6]
[327686633,1716316256291,-500.0,0.00030958,6]
[327686634,1716316256301,-1075.43,0.00030958,6]
[327686635,1716316256311,-1755.6,0.00030958,6]
[327686636,1716316256320,-500.0,0.00030958,6]
[327686637,1716316256329,-1648.0,0.00030958,6]
[327686638,1716316256340,-500.0,0.00030958,6]
[327686639,1716316256349,-664.63,0.00030958,6]
[327686640,1716316256358,-1162.81,0.00030958,6]
[327686641,1716316256369,-500.0,0.00030958,6]
[327686642,1716316256379,-2412.38,0.00030958,6]
[327686643,1716316256388,-500.0,0.00030958,6]
[327686644,1716316256398,-1521.73,0.00030958,6]
[327686645,1716316256408,-693.15,0.00030958,6]
[327686646,1716316256417,-546.22,0.00030958,6]
[327686647,1716316256427,-5092.37,0.00030958,6]
[327686648,1716316256437,-500.0,0.00030958,6]
[327686649,1716316256448,-715.94,0.00030958,6]
[327686650,1716316256458,-1578.46,0.00030958,6]
[327686651,1716316256467,-2437.48,0.00030958,6]
[327686652,1716316256476,-1126.66,0.00030958,6]
[327686653,1716316256486,-500.0,0.00030958,6]
[327686654,1716316256496,-2640.62,0.00030958,6]
[327686655,1716316256505,-11507.41,0.00030958,6]
[327686656,1716316256517,-918.14,0.00030958,6]
[327686657,1716316256526,-17798.41,0.00030958,6]
[327686658,1716316256536,-3960.21,0.00030958,6]
[327686659,1716316256546,-2310.75,0.00030958,6]
[327686660,1716316256555,-615.99,0.00030958,6]
[327686661,1716316256565,-1917.6,0.00030958,6]
[327686662,1716316256575,-3564.21,0.00030958,6]
[327686663,1716316256584,-555.48,0.00030958,6]
[327686664,1716316256594,-500.0,0.00030958,6]
[327686665,1716316256604,-1377.53,0.00030958,6]
[327686666,1716316256613,-1386.79,0.00030958,6]
[327686667,1716316256623,-7460.5,0.00030958,6]
[327686668,1716316256632,-899.25,0.00030958,6]
[327686669,1716316256641,-1306.92,0.00030958,6]
[327686670,1716316256651,-892.49,0.00030958,6]
[327686671,1716316256660,-606.77,0.00030958,6]
[327686672,1716316256670,-500.0,0.00030958,6]
[327686673,1716316256681,-500.0,0.00030958,6]
[327686674,1716316256690,-500.0,0.00030958,6]
[327686675,1716316256700,-500.0,0.00030958,6]
[327686676,1716316256709,-1096.41,0.00030958,6]
[327686677,1716316256719,-500.0,0.00030958,6]
[327686678,1716316256728,-500.0,0.00030958,6]
[327686679,1716316256737,-406.48658071,0.00030958,6]
[327686680,1716316256747,-5000.1,0.00030958,6]
[327686681,1716316256757,-959.06,0.00030958,6]
[327686682,1716316256767,-598.5,0.00030958,6]
[327686683,1716316256776,-791.47,0.00030958,6]
[327686684,1716316256786,-32053.49,0.00030958,6]
[327686685,1716316256796,-1743.17,0.00030958,6]
[327686686,1716316256808,-729.88,0.00030958,6]
[327686687,1716316256818,-817.56,0.00030958,6]
[327686688,1716316256827,-500.0,0.00030958,6]
[327686689,1716316256836,-500.0,0.00030958,6]
[327686690,1716316256848,-724.74,0.00030958,6]
[327686691,1716316256857,-1700.58,0.00030958,6]
[327686692,1716316256867,-1769.46,0.00030958,6]
[327686693,1716316256878,-1256.49,0.00030958,6]
[327686694,1716316256887,-504.54,0.00030958,6]
[327686695,1716316256897,-164.1759485,0.00030958,6]
[327686696,1716316256906,-1205.04,0.00030958,6]
[327686697,1716316256916,-500.0,0.00030958,6]
[327686698,1716316256925,-228.76,0.00030958,6]
[327686699,1716316256935,-500.0,0.00030958,6]
[327686700,1716316257011,-581.31,0.00030958,6]
[327686701,1716316257022,-1040.21,0.00030958,6]
[327686702,1716316257032,-1004.82,0.00030958,6]
[327686703,1716316257041,-500.0,0.00030958,6]
[327686704,1716316257052,-2440.01,0.00030958,6]
[327686705,1716316257061,-500.0,0.00030958,6]
[327686706,1716316257071,-957.87,0.00030958,6]
[327686707,1716316257080,-416.36329951,0.00030958,6]
[327686708,1716316257090,-956.64,0.00030958,6]
[327686709,1716316257099,-1246.0,0.00030958,6]
[327686710,1716316257109,-900.38,0.00030958,6]
[327686711,1716316257119,-500.0,0.00030958,6]
[327686712,1716316257129,-3280.1,0.00030958,6]
[327686713,1716316257139,-500.0,0.00030958,6]
[327686714,1716316257149,-885.02,0.00030958,6]
[327686715,1716316257158,-967.59,0.00030958,6]
[327686716,1716316257167,-500.0,0.00030958,6]
[327686717,1716316257177,-555.07,0.00030958,6]
[327686718,1716316257187,-2535.68,0.00030958,6]
[327686719,1716316257196,-500.0,0.00030958,6]
[327686720,1716316257206,-500.0,0.00030958,6]
[327686721,1716316257216,-500.0,0.00030958,6]
[327686722,1716316257225,-500.0,0.00030958,6]
[327686723,1716316257235,-500.0,0.00030958,6]
[327686724,1716316257244,-3806.59,0.00030958,6]
[327686725,1716316257254,-1488.74,0.00030958,6]
[327686726,1716316257264,-1147.17,0.00030958,6]
[327686727,1716316257273,-500.0,0.00030958,6]
[327686728,1716316257283,-1380.38,0.00030958,6]
[327686729,1716316257292,-500.0,0.00030958,6]
[327686730,1716316257301,-500.0,0.00030958,6]
[327686731,1716316257310,-1635.63,0.00030958,6]
[327686732,1716316257320,-1525.29,0.00030958,6]
[327686733,1716316257329,-1257.47,0.00030958,6]
[327686734,1716316257340,-500.0,0.00030958,6]
[327686735,1716316257349,-500.0,0.00030958,6]
[327686736,1716316257359,-970.49,0.00030958,6]
[327686737,1716316257368,-2530.76,0.00030958,6]
[327686738,1716316257378,-2578.83,0.00030958,6]
[327686739,1716316257388,-500.0,0.00030958,6]
[327686740,1716316257397,-604.91,0.00030958,6]
[327686741,1716316257407,-1708.59,0.00030958,6]
[327686742,1716316257418,-500.0,0.00030958,6]
[327686743,1716316257427,-628.28,0.00030958,6]
[327686744,1716316257436,-500.0,0.00030958,6]
[327686745,1716316257445,-5873.13,0.00030958,6]
[327686746,1716316257455,-500.0,0.00030958,6]
[327686747,1716316257464,-500.0,0.00030958,6]
[327686748,1716316257474,-500.0,0.00030958,6]
[327686749,1716316257483,-627.38,0.00030958,6]
[327686750,1716316257493,-500.0,0.00030958,6]
[327686751,1716316257502,-1306.57,0.00030958,6]
[327686752,1716316257512,-569.32,0.00030958,6]
[327686753,1716316257522,-500.0,0.00030958,6]
[327686754,1716316257531,-790.98,0.00030958,6]
[327686755,1716316257540,-2504.87,0.00030958,6]
[327686756,1716316257549,-642.22,0.00030958,6]
[327686757,1716316257559,-151.0,0.00030958,7]
[327686758,1716316257568,-151.0,0.00030958,7]
[327686759,1716316257577,-500.0,0.00030958,6]
[327686760,1716316257587,-658.26,0.00030958,6]
[327686761,1716316257596,-2664.87,0.00030958,6]
[327686762,1716316257605,-2680.72,0.00030958,6]
[327686763,1716316257614,-1735.47,0.00030958,6]
[327686764,1716316257623,-1337.02,0.00030958,6]
[327686765,1716316257633,-500.0,0.00030958,6]
[327686766,1716316257642,-2169.3,0.00030958,6]
[327686767,1716316257651,-708.14,0.00030958,6]
[327686768,1716316257660,-2491.18,0.00030958,6]
[327686769,1716316257670,-500.0,0.00030958,6]
[327686770,1716316257679,-500.0,0.00030958,6]
[327686771,1716316257688,-938.36,0.00030958,6]
[327686772,1716316257696,-1512.45,0.00030958,6]
[327686773,1716316257706,-16487.94,0.00030958,6]
[327686774,1716316257715,-2965.71,0.00030958,6]
[327686775,1716316257724,-1252.58,0.00030958,6]
[327686776,1716316257733,-756.29,0.00030958,6]
[327686777,1716316257742,-4868.19,0.00030958,6]
[327686778,1716316257751,-945.04,0.00030958,6]
[327686779,1716316257760,-500.0,0.00030958,6]
[327686780,1716316257771,-500.0,0.00030958,6]
[327686781,1716316257780,-4497.66,0.00030958,6]
[327686782,1716316257794,-555.55,0.00030958,6]
[327686783,1716316257803,-1278.8,0.00030958,6]
[327686784,1716316257812,-2100.9,0.00030958,6]
[327686785,1716316257822,-583.25,0.00030958,6]
[327686786,1716316257832,-500.0,0.00030958,6]
[327686787,1716316257842,-1930.02,0.00030958,6]
[327686788,1716316257851,-500.0,0.00030958,6]
[327686789,1716316257860,-2760.56,0.00030958,6]
[327686790,1716316257872,-500.0,0.00030958,6]
[327686791,1716316257882,-2732.98,0.00030958,6]
[327686792,1716316257892,-500.0,0.00030958,6]
[327686793,1716316257901,-500.0,0.00030958,6]
[327686794,1716316257911,-2336.81,0.00030958,6]
[327686795,1716316257920,-500.0,0.00030958,6]
[327686796,1716316257930,-731.47,0.00030958,6]
[327686797,1716316257943,-627.47,0.00030958,6]
[327686798,1716316257952,-500.0,0.00030958,6]
[327686799,1716316257962,-500.0,0.00030958,2]
[327686800,1716316257972,-1752.67,0.00030958,6]
[327686801,1716316257982,-341.42880392,0.00030958,6]
[327686802,1716316257991,-591.06,0.00030958,6]
[327686803,1716316258001,-1442.1,0.00030958,6]
[327686804,1716316258011,-3857.11,0.00030958,6]
[327686805,1716316258021,-543.42,0.00030958,6]
[327686806,1716316258031,-500.0,0.00030958,6]
[327686807,1716316258040,-1100.89,0.00030958,6]
[327686808,1716316258050,-1036.86,0.00030958,6]
[327686809,1716316258059,-500.0,0.00030958,6]
[327686810,1716316258069,-500.0,0.00030958,6]
[327686811,1716316258078,-500.0,0.00030958,6]
[327686812,1716316258088,-477.03212183,0.00030958,6]
[327686813,1716316258097,-500.0,0.00030958,6]
[327686814,1716316258107,-500.0,0.00030958,6]
[327686815,1716316258116,-2606.25,0.00030958,6]
[327686816,1716316258126,-264.154484,0.00030958,7]
[327686817,1716316258135,-500.0,0.00030958,6]
[327686818,1716316258145,-500.0,0.00030958,6]
[327686819,1716316258154,-500.0,0.00030958,6]
[327686820,1716316258163,-1666.58,0.00030958,6]
[327686821,1716316258172,-500.0,0.00030958,6]
[327686822,1716316258181,-608.2,0.00030958,6]
[327686823,1716316258191,-3603.45,0.00030958,6]
[327686824,1716316258200,-500.0,0.00030958,6]
[327686825,1716316258209,-4534.59,0.00030958,6]
[327686826,1716316258218,-45330.32,0.00030958,6]
[327686827,1716316258227,-1578.93,0.00030958,6]
[327686828,1716316258237,-500.0,0.00030958,6]
[327686829,1716316258246,-500.0,0.00030958,6]
[327686830,1716316258255,-2626.07,0.00030958,6]
[327686831,1716316258266,-151.0,0.00030958,7]
[327686832,1716316258276,-1557.56,0.00030958,6]
[327686833,1716316258284,-500.0,0.00030958,6]
[327686834,1716316258293,-1000.0,0.00030972,15]
[327686835,1716316258303,-500.0,0.00030972,2]
[327686836,1716316258314,-415.25,0.00031009,2]
[327686837,1716316258323,-1738.65,0.00031009,2]
[327686838,1716316258332,-15244.13294643,0.00031131,2]
[327686839,1716316258342,-2979.75186347,0.00031131,2]
[327686840,1716316258351,-435.0,0.00031141,5]
[327686841,1716316258361,-2151.0432933,0.00031157,2]
[327686842,1716316258371,-150.68,0.00031202,15]
[327686843,1716316258380,-208.1190654,0.00031221,2]
[327686844,1716316258389,-5871.71100266,0.00031221,2]
[327686845,1716316258399,-2165.96,0.00031231,6]
[327686846,1716316258408,-79003.0871915,0.00031232,21]
[327686847,1716316258418,-500.0,0.00031232,6]
[327686848,1716316258428,-500.0,0.00031232,6]
[327686849,1716316258439,-500.0,0.00031232,6]
[327686850,1716316258449,-500.0,0.00031232,6]
[327686851,1716316258458,-500.0,0.00031232,6]
[327686852,1716316258467,-500.0,0.00031232,6]
[327686853,1716316258476,-500.0,0.00031232,6]
[327686854,1716316258485,-500.0,0.00031232,6]
[327686855,1716316258495,-500.0,0.00031232,6]
[327686856,1716316258504,-500.0,0.00031232,6]
[327686857,1716316258515,-500.0,0.00031232,6]
[327686858,1716316258524,-500.0,0.00031232,6]
[327686859,1716316258534,-669.78,0.00031232,6]
[327686860,1716316258543,-500.0,0.00031232,6]
[327686861,1716316258552,-500.0,0.00031232,6]
[327686862,1716316258562,-500.0,0.00031232,6]
[327686863,1716316258571,-500.0,0.00031232,6]
[327686864,1716316258581,-500.0,0.00031232,6]
[327686865,1716316258591,-500.0,0.00031232,6]
[327686866,1716316258600,-500.0,0.00031232,6]
[327686867,1716316258610,-661.34,0.00031232,6]
[327686868,1716316258620,-568.65436951,0.00031232,6]
[327686869,1716316258629,-500.0,0.00031232,6]
[327686870,1716316258639,-500.0,0.00031232,6]
[327686871,1716316258649,-500.0,0.00031232,6]
[327686872,1716316258658,-530.7,0.00031232,6]
[327686873,1716316258668,-500.0,0.00031232,6]
[327686874,1716316258678,-500.0,0.00031232,6]
[327686875,1716316258688,-500.0,0.00031232,6]
[327686876,1716316258697,-376.80861141,0.00031232,6]
[327686877,1716316258707,-500.0,0.00031232,6]
[327686878,1716316258717,-500.0,0.00031232,6]
[327686879,1716316258727,-500.0,0.00031232,6]
[327686880,1716316258737,-466.18925403,0.00031232,6]
[327686881,1716316258746,-500.0,0.00031232,6]
[327686882,1716316258756,-500.0,0.00031232,6]
[327686883,1716316258768,-500.0,0.00031232,6]
[327686884,1716316258777,-899.59,0.00031232,6]
[327686885,1716316258787,-500.0,0.00031232,6]
[327686886,1716316258800,-500.0,0.00031232,6]
[327686887,1716316258811,-500.0,0.00031232,6]
[327686888,1716316258820,-500.0,0.00031232,6]
[327686889,1716316258831,-500.0,0.00031232,6]
[327686890,1716316258840,-500.0,0.00031232,6]
[327686891,1716316258850,-500.0,0.00031232,6]
[327686892,1716316258860,-500.0,0.00031232,6]
[327686893,1716316258873,-500.0,0.00031232,6]
[327686894,1716316258883,-526.21,0.00031232,6]
[327686895,1716316258893,-500.0,0.00031232,6]
[327686896,1716316258902,-561.17,0.00031232,6]
[327686897,1716316258912,-500.0,0.00031232,6]
[327686898,1716316258923,-500.0,0.00031232,6]
[327686899,1716316258933,-502.17,0.00031232,6]
[327686900,1716316258943,-500.0,0.00031232,6]
[327686901,1716316258953,-500.0,0.00031232,6]
[327686902,1716316258964,-500.0,0.00031232,6]
[327686903,1716316258974,-500.0,0.00031232,6]
[327686904,1716316258985,-500.0,0.00031232,6]
[327686905,1716316258995,-642.2,0.00031232,6]
[327686906,1716316259005,-707.53,0.00031232,6]
[327686907,1716316259017,-500.0,0.00031232,6]
[327686908,1716316259027,-500.0,0.00031232,6]
[327686909,1716316259037,-636.68,0.00031232,6]
[327686910,1716316259049,-500.0,0.00031232,6]
[327686911,1716316259059,-500.0,0.00031232,6]
[327686912,1716316259069,-500.0,0.00031232,6]
[327686913,1716316259079,-500.0,0.00031232,6]
[327686914,1716316259089,-705.01,0.00031232,6]
[327686915,1716316259100,-500.0,0.00031232,6]
[327686916,1716316259110,-685.81,0.00031232,6]
[327686917,1716316259120,-500.0,0.00031232,6]
[327686918,1716316259131,-548.36,0.00031232,6]
[327686919,1716316259141,-500.0,0.00031232,6]
[327686920,1716316259151,-500.0,0.00031232,6]
[327686921,1716316259161,-573.56,0.00031232,6]
[327686922,1716316259171,-898.96,0.00031232,6]
[327686923,1716316259181,-642.25,0.00031232,6]
[327686924,1716316259192,-500.0,0.00031232,6]
[327686925,1716316259202,-500.0,0.00031232,6]
[327686926,1716316259212,-816.76,0.00031232,6]
[327686927,1716316259223,-500.0,0.00031232,6]
[327686928,1716316259232,-500.0,0.00031232,6]
[327686929,1716316259243,-500.0,0.00031232,6]
[327686930,1716316259253,-500.0,0.00031232,6]
[327686931,1716316259264,-500.0,0.00031232,6]
[327686932,1716316259274,-500.0,0.00031232,6]
[327686933,1716316259284,-500.0,0.00031232,6]
[327686934,1716316259294,-500.0,0.00031232,6]
[327686935,1716316259304,-500.0,0.00031232,6]
[327686936,1716316259315,-986.16,0.00031232,6]
[327686937,1716316259325,-500.0,0.00031232,6]
[327686938,1716316259335,-783.72,0.00031232,6]
[327686939,1716316259346,-500.0,0.00031232,6]
[327686940,1716316259356,-500.0,0.00031232,6]
[327686941,1716316259366,-508.59,0.00031232,6]
[327686942,1716316259377,-644.81,0.00031232,6]
[327686943,1716316259387,-500.0,0.00031232,6]
[327686944,1716316259397,-500.0,0.00031232,6]
[327686945,1716316259407,-500.0,0.00031232,6]
[327686946,1716316259417,-522.18,0.00031232,6]
[327686947,1716316259427,-500.0,0.00031232,6]
[327686948,1716316259437,-500.0,0.00031232,6]
[327686949,1716316259447,-500.0,0.00031232,6]
[327686950,1716316259458,-500.0,0.00031232,6]
[327686951,1716316259468,-644.62,0.00031232,6]
[327686952,1716316259478,-500.0,0.00031232,6]
[327686953,1716316259488,-500.0,0.00031232,6]
[327686954,1716316259497,-500.0,0.00031232,6]
[327686955,1716316259508,-500.0,0.00031232,6]
[327686956,1716316259520,-842.71,0.00031232,6]
[327686957,1716316259533,-500.0,0.00031232,6]
[327686958,1716316259543,-500.0,0.00031232,6]
[327686959,1716316259554,-500.0,0.00031232,6]
[327686960,1716316259565,-500.0,0.00031232,6]
[327686961,1716316259575,-1359.76,0.00031232,6]
[327686962,1716316259585,-747.88,0.00031232,6]
[327686963,1716316259596,-500.0,0.00031232,6]
[327686964,1716316259606,-500.0,0.00031232,6]
[327686965,1716316259616,-500.0,0.00031232,6]
[327686966,1716316259627,-500.0,0.00031232,6]
[327686967,1716316259637,-500.0,0.00031232,6]
[327686968,1716316259647,-500.0,0.00031232,6]
[327686969,1716316259657,-794.15,0.00031232,6]
[327686970,1716316259667,-500.0,0.00031232,6]
[327686971,1716316259678,-935.05,0.00031232,6]
[327686972,1716316259689,-634.77,0.00031232,6]
[327686973,1716316259704,-550.92,0.00031232,6]
[327686974,1716316259717,-500.0,0.00031232,6]
[327686975,1716316259731,-1120.28,0.00031232,6]
[327686976,1716316259744,-500.0,0.00031232,6]
[327686977,1716316259756,-495.7676894,0.00031232,6]
[327686978,1716316259768,-520.02,0.00031232,6]
[327686979,1716316259780,-500.0,0.00031232,6]
[327686980,1716316259795,-667.72,0.00031232,6]
[327686981,1716316259807,-500.0,0.00031232,6]
[327686982,1716316259820,-1155.33,0.00031232,6]
[327686983,1716316259835,-500.0,0.00031232,6]
[327686984,1716316259848,-673.67,0.00031232,6]
[327686985,1716316259860,-500.0,0.00031232,6]
[327686986,1716316259876,-500.0,0.00031232,6]
[327686987,1716316259890,-500.0,0.00031232,6]
[327686988,1716316259902,-712.81,0.00031232,6]
[327686989,1716316259914,-528.34,0.00031232,6]
[327686990,1716316259926,-895.9,0.00031232,6]
[327686991,1716316259937,-500.0,0.00031232,6]
[327686992,1716316259949,-500.0,0.00031232,6]
[327686993,1716316259962,-531.86,0.00031232,6]
[327686994,1716316259974,-500.0,0.00031232,6]
[327686995,1716316259985,-508.03,0.00031232,6]
[327686996,1716316259997,-500.0,0.00031232,6]
[327686997,1716316260007,-714.57,0.00031232,6]
[327686998,1716316260020,-500.0,0.00031232,6]
[327686999,1716316260032,-640.59,0.00031232,6]
[327687000,1716316260044,-736.81,0.00031232,6]
[327687001,1716316260056,-500.76,0.00031232,6]
[327687002,1716316260068,-582.67,0.00031232,6]
[327687003,1716316260081,-578.72,0.00031232,6]
[327687004,1716316260092,-201.7,0.00031232,6]
[327687005,1716316260105,-536.34,0.00031232,6]
[327687006,1716316260118,-758.17,0.00031232,6]
[327687007,1716316260131,-761.88,0.00031232,6]
[327687008,1716316260143,-508.86,0.00031232,6]
[327687009,1716316260154,-500.0,0.00031232,6]
[327687010,1716316260164,-500.0,0.00031232,6]
[327687011,1716316260174,-500.0,0.00031232,6]
[327687012,1716316260185,-500.0,0.00031232,6]
[327687013,1716316260197,-548.52,0.00031232,6]
[327687014,1716316260209,-1323.49,0.00031232,6]
[327687015,1716316260221,-858.99,0.00031232,6]
[327687016,1716316260233,-540.73,0.00031232,6]
[327687017,1716316260243,-621.75,0.00031232,6]
[327687018,1716316260255,-500.0,0.00031232,6]
[327687019,1716316260268,-577.74,0.00031232,6]
[327687020,1716316260280,-500.0,0.00031232,6]
[327687021,1716316260294,-500.0,0.00031232,6]
[327687022,1716316260304,-500.0,0.00031232,6]
[327687023,1716316260315,-844.58,0.00031232,6]
[327687024,1716316260326,-500.0,0.00031232,6]
[327687025,1716316260337,-500.0,0.00031232,6]
[327687026,1716316260348,-616.73,0.00031232,6]
[327687027,1716316260360,-972.64,0.00031232,6]
[327687028,1716316260371,-500.0,0.00031232,6]
[327687029,1716316260382,-509.21,0.00031232,6]
[327687030,1716316260393,-500.0,0.00031232,6]
[327687031,1716316260404,-897.67,0.00031232,6]
[327687032,1716316260415,-500.0,0.00031232,6]
[327687033,1716316260426,-500.0,0.00031232,6]
[327687034,1716316260436,-1075.6,0.00031232,6]
[327687035,1716316260447,-1017.28,0.00031232,6]
[327687036,1716316260457,-500.0,0.00031232,6]
[327687037,1716316260468,-776.77,0.00031232,6]
[327687038,1716316260479,-500.0,0.00031232,6]
[327687039,1716316260490,-500.0,0.00031232,6]
[327687040,1716316260500,-1232.83,0.00031232,6]
[327687041,1716316260512,-150.0,0.00031232,6]
[327687042,1716316260524,-855.63,0.00031232,6]
[327687043,1716316260535,-500.0,0.00031232,6]
[327687044,1716316260546,-1394.84,0.00031232,6]
[327687045,1716316260557,-500.0,0.00031232,6]
[327687046,1716316260568,-681.97,0.00031232,6]
[327687047,1716316260579,-627.96,0.00031232,6]
[327687048,1716316260590,-653.59,0.00031232,6]
[327687049,1716316260601,-639.66,0.00031232,6]
[327687050,1716316260611,-577.48,0.00031232,6]
[327687051,1716316260622,-609.76,0.00031232,6]
[327687052,1716316260633,-793.39,0.00031232,6]
[327687053,1716316260644,-744.05,0.00031232,6]
[327687054,1716316260655,-421.56513592,0.00031232,6]
[327687055,1716316260665,-738.85,0.00031232,6]
[327687056,1716316260676,-1125.7,0.00031232,6]
[327687057,1716316260686,-868.11,0.00031232,6]
[327687058,1716316260697,-1004.45,0.00031232,6]
[327687059,1716316260708,-836.71,0.00031232,6]
[327687060,1716316260719,-2626.16,0.00031232,6]
[327687061,1716316260730,-500.0,0.00031232,6]
[327687062,1716316260741,-1130.72,0.00031232,6]
[327687063,1716316260752,-926.85,0.00031232,6]
[327687064,1716316260763,-500.0,0.00031232,6]